[Event "*** MasterClass Titled Tuesday Blitz"]
[Site "Chess.com"]
[Date "2017.12.12"]
[Round "6"]
[White "RobertoJBM"]
[Black "Oleksandr_Bortnyk"]
[Result "1-0"]
[WhiteElo "2635"]
[BlackElo "2796"]
[TimeControl "180+2"]
[EndTime "14:26:50 PST"]
[Termination "RobertoJBM won by checkmate"]

1. d4 {[%clk 0:03:01.9]} 1... d6 {[%clk 0:02:59]} 2. e4 {[%clk 0:03:01.7]} 2...
Nf6 {[%clk 0:02:59.6]} 3. Nc3 {[%clk 0:03:03]} 3... Nbd7 {[%clk 0:03:01.5]} 4.
Nf3 {[%clk 0:03:02.7]} 4... e5 {[%clk 0:03:03.1]} 5. Bc4 {[%clk 0:03:03.8]} 5...
Be7 {[%clk 0:03:03.7]} 6. O-O {[%clk 0:03:04.5]} 6... O-O {[%clk 0:03:05.2]} 7.
Re1 {[%clk 0:03:03.6]} 7... a6 {[%clk 0:03:06.3]} 8. a4 {[%clk 0:03:04.7]} 8...
b6 {[%clk 0:03:07.5]} 9. b3 {[%clk 0:03:05.1]} 9... Bb7 {[%clk 0:03:08.3]} 10.
d5 {[%clk 0:03:05.8]} 10... h6 {[%clk 0:03:07.7]} 11. b4 {[%clk 0:03:03.5]}
11... Nh7 {[%clk 0:03:07.5]} 12. b5 {[%clk 0:02:58.9]} 12... a5 {[%clk
0:03:07.5]} 13. Ne2 {[%clk 0:02:54.5]} 13... f5 {[%clk 0:03:06.8]} 14. exf5
{[%clk 0:02:54.1]} 14... Rxf5 {[%clk 0:03:08.7]} 15. Ng3 {[%clk 0:02:55]} 15...
Rf8 {[%clk 0:03:09.7]} 16. Bd3 {[%clk 0:02:54.3]} 16... Nc5 {[%clk 0:03:08.3]}
17. Bf5 {[%clk 0:02:53.5]} 17... Bc8 {[%clk 0:03:04.7]} 18. Bxc8 {[%clk
0:02:53.9]} 18... Qxc8 {[%clk 0:03:06.6]} 19. Be3 {[%clk 0:02:54.6]} 19... Qg4
{[%clk 0:02:57.2]} 20. Bxc5 {[%clk 0:02:48.1]} 20... bxc5 {[%clk 0:02:59.1]} 21.
h3 {[%clk 0:02:43.5]} 21... Qg6 {[%clk 0:02:55.3]} 22. Qd3 {[%clk 0:02:41.6]}
22... Qxd3 {[%clk 0:02:54.6]} 23. cxd3 {[%clk 0:02:43.5]} 23... Nf6 {[%clk
0:02:55.9]} 24. d4 {[%clk 0:02:34.7]} 24... cxd4 {[%clk 0:02:57]} 25. Nxd4
{[%clk 0:02:35.6]} 25... Nxd5 {[%clk 0:02:47.5]} 26. Nc6 {[%clk 0:02:32.5]}
26... Bh4 {[%clk 0:02:45.9]} 27. Ne4 {[%clk 0:02:33.3]} 27... Rf7 {[%clk
0:02:36]} 28. g3 {[%clk 0:02:34.1]} 28... Bg5 {[%clk 0:02:32.4]} 29. Rad1 {[%clk
0:02:34]} 29... Nb6 {[%clk 0:02:32.8]} 30. h4 {[%clk 0:02:26.3]} 30... Bf6
{[%clk 0:02:33.2]} 31. Nc3 {[%clk 0:02:23.6]} 31... g5 {[%clk 0:02:16.3]} 32.
hxg5 {[%clk 0:02:04]} 32... Bxg5 {[%clk 0:02:18.2]} 33. Re4 {[%clk 0:02:03.8]}
33... Raf8 {[%clk 0:02:15.3]} 34. Nxa5 {[%clk 0:01:43.8]} 34... Rxf2 {[%clk
0:02:13.8]} 35. Nc4 {[%clk 0:01:39.5]} 35... R2f3 {[%clk 0:00:55.7]} 36. Nxb6
{[%clk 0:01:38.3]} 36... Rxc3 {[%clk 0:00:55.7]} 37. Nd5 {[%clk 0:01:37.1]}
37... Rxg3+ {[%clk 0:00:55.2]} 38. Kh2 {[%clk 0:01:38.1]} 38... Rff3 {[%clk
0:00:44.7]} 39. Nxc7 {[%clk 0:01:30.8]} 39... Bf4 {[%clk 0:00:42.2]} 40. Rg1
{[%clk 0:01:21.7]} 40... Rg5+ {[%clk 0:00:20.7]} 41. Rxf4 {[%clk 0:01:18.7]}
41... exf4 {[%clk 0:00:20.5]} 42. b6 {[%clk 0:01:11.7]} 42... Rb3 {[%clk
0:00:13]} 43. Nb5 {[%clk 0:01:07.9]} 43... Rb2+ {[%clk 0:00:08.5]} 44. Kh1
{[%clk 0:01:08.8]} 44... f3 {[%clk 0:00:04.6]} 45. b7 {[%clk 0:01:09.2]} 45...
Kh7 {[%clk 0:00:05.4]} 46. Rxg5 {[%clk 0:01:07]} 46... hxg5 {[%clk 0:00:05.9]}
47. b8=Q {[%clk 0:01:06.6]} 47... Rb1+ {[%clk 0:00:07.8]} 48. Kh2 {[%clk
0:01:07.2]} 48... f2 {[%clk 0:00:09.3]} 49. Qc7+ {[%clk 0:01:05.5]} 49... Kh6
{[%clk 0:00:10.2]} 50. Qxd6+ {[%clk 0:01:06.5]} 50... Kh5 {[%clk 0:00:11.6]} 51.
Nc3 {[%clk 0:00:33.5]} 51... Re1 {[%clk 0:00:11.8]} 52. Ne2 {[%clk 0:00:28.9]}
52... Rh1+ {[%clk 0:00:02.7]} 53. Kxh1 {[%clk 0:00:27.5]} 53... f1=Q+ {[%clk
0:00:04.6]} 54. Ng1 {[%clk 0:00:28.7]} 54... Qc4 {[%clk 0:00:06]} 55. Qd1+
{[%clk 0:00:20.8]} 55... Kh6 {[%clk 0:00:06.2]} 56. Kg2 {[%clk 0:00:22]} 56...
Qa2+ {[%clk 0:00:06.5]} 57. Ne2 {[%clk 0:00:22.4]} 57... Qe6 {[%clk 0:00:06.3]}
58. Ng3 {[%clk 0:00:18.5]} 58... Qc6+ {[%clk 0:00:07.3]} 59. Kf2 {[%clk
0:00:19.4]} 59... Qc5+ {[%clk 0:00:07.9]} 60. Kf3 {[%clk 0:00:19.3]} 60... Qc6+
{[%clk 0:00:08.7]} 61. Ne4 {[%clk 0:00:18.7]} 61... Qa8 {[%clk 0:00:02.8]} 62.
Qd6+ {[%clk 0:00:18.8]} 62... Kh5 {[%clk 0:00:03.8]} 63. Qh2+ {[%clk 0:00:18.7]}
63... Kg6 {[%clk 0:00:05.1]} 64. Qd6+ {[%clk 0:00:19.5]} 64... Kh5 {[%clk
0:00:06.6]} 65. Qe5 {[%clk 0:00:18.9]} 65... Qf8+ {[%clk 0:00:04.9]} 66. Kg3
{[%clk 0:00:19.7]} 66... Qa3+ {[%clk 0:00:03.3]} 67. Qc3 {[%clk 0:00:16.3]}
67... Qxa4 {[%clk 0:00:03.4]} 68. Qf3+ {[%clk 0:00:14.3]} 68... Kh6 {[%clk
0:00:02.4]} 69. Qf6+ {[%clk 0:00:15.1]} 69... Kh7 {[%clk 0:00:02.7]} 70. Nxg5+
{[%clk 0:00:16.3]} 70... Kg8 {[%clk 0:00:03.6]} 71. Qf7+ {[%clk 0:00:17.6]}
71... Kh8 {[%clk 0:00:04.4]} 72. Qh7# {[%clk 0:00:19.5]} 1-0

[Event "*** MasterClass Titled Tuesday Blitz"]
[Site "Chess.com"]
[Date "2017.12.12"]
[Round "6"]
[White "ShimanovAlex"]
[Black "jcibarra"]
[Result "1/2-1/2"]
[WhiteElo "2652"]
[BlackElo "2689"]
[TimeControl "180+2"]
[EndTime "14:26:50 PST"]
[Termination "Game drawn by repetition"]

1. d4 {[%clk 0:03:01.9]} 1... Nf6 {[%clk 0:03:00.9]} 2. c4 {[%clk 0:03:02.9]}
2... d6 {[%clk 0:03:02.2]} 3. Nf3 {[%clk 0:03:02.2]} 3... g6 {[%clk 0:03:03.3]}
4. Nc3 {[%clk 0:03:03.4]} 4... Bf5 {[%clk 0:03:04.4]} 5. Ng5 {[%clk 0:02:55.7]}
5... Bd7 {[%clk 0:03:04.8]} 6. e4 {[%clk 0:02:56.3]} 6... e5 {[%clk 0:03:05.3]}
7. d5 {[%clk 0:02:55.6]} 7... a5 {[%clk 0:03:05.2]} 8. Be2 {[%clk 0:02:53.1]}
8... Na6 {[%clk 0:03:06.1]} 9. h4 {[%clk 0:02:48.2]} 9... h6 {[%clk 0:03:04.1]}
10. Nf3 {[%clk 0:02:49.1]} 10... Bg7 {[%clk 0:03:04.8]} 11. Nh2 {[%clk
0:02:44.2]} 11... Nc5 {[%clk 0:03:04.6]} 12. Bf3 {[%clk 0:02:42.6]} 12... c6
{[%clk 0:02:45.6]} 13. Be3 {[%clk 0:02:39]} 13... cxd5 {[%clk 0:02:46.2]} 14.
cxd5 {[%clk 0:02:40]} 14... Rc8 {[%clk 0:02:44.5]} 15. h5 {[%clk 0:02:38.2]}
15... gxh5 {[%clk 0:02:40.2]} 16. Nf1 {[%clk 0:02:38.6]} 16... Qb6 {[%clk
0:02:32.4]} 17. Rb1 {[%clk 0:02:38.3]} 17... Qa6 {[%clk 0:02:02.6]} 18. Be2
{[%clk 0:02:37.9]} 18... b5 {[%clk 0:01:59.4]} 19. Ng3 {[%clk 0:02:33.6]} 19...
Qb6 {[%clk 0:01:56.5]} 20. Nxh5 {[%clk 0:02:20.9]} 20... Nxh5 {[%clk 0:01:53.3]}
21. Bxh5 {[%clk 0:02:21.9]} 21... b4 {[%clk 0:01:50]} 22. Ne2 {[%clk 0:02:22.5]}
22... Qb5 {[%clk 0:01:45.8]} 23. Bxc5 {[%clk 0:02:14.9]} 23... Rxc5 {[%clk
0:01:45.5]} 24. Ng3 {[%clk 0:02:16.3]} 24... Qc4 {[%clk 0:01:11]} 25. Be2 {[%clk
0:02:08.7]} 25... Qc2 {[%clk 0:01:09.6]} 26. Bd3 {[%clk 0:01:30.1]} 26... Qxd1+
{[%clk 0:01:07.7]} 27. Kxd1 {[%clk 0:01:31.7]} 27... Bf6 {[%clk 0:01:02.7]} 28.
Rc1 {[%clk 0:01:27.8]} 28... Rxc1+ {[%clk 0:01:03.4]} 29. Kxc1 {[%clk 0:01:29]}
29... Bg5+ {[%clk 0:01:04.8]} 30. Kd1 {[%clk 0:01:29.5]} 30... Ke7 {[%clk
0:01:05.6]} 31. Ke2 {[%clk 0:01:23]} 31... Rc8 {[%clk 0:01:06.5]} 32. Nf1 {[%clk
0:01:22.8]} 32... Rc1 {[%clk 0:01:06]} 33. Ng3 {[%clk 0:01:24.1]} 33... Rxh1
{[%clk 0:00:58.3]} 34. Nxh1 {[%clk 0:01:25.1]} 34... Kd8 {[%clk 0:00:58.6]} 35.
Ng3 {[%clk 0:01:16.4]} 35... Kc7 {[%clk 0:00:59.7]} 36. b3 {[%clk 0:01:15.5]}
36... Kb6 {[%clk 0:01:00.5]} 37. Bc4 {[%clk 0:01:15.5]} 37... Kc5 {[%clk
0:01:00.3]} 38. Kd3 {[%clk 0:01:16.7]} 38... Bh4 {[%clk 0:00:57.6]} 39. Nh1
{[%clk 0:01:14.6]} 39... f5 {[%clk 0:00:54.7]} 40. f3 {[%clk 0:01:15.4]} 40...
f4 {[%clk 0:00:54.6]} 41. Ba6 {[%clk 0:01:13.9]} 41... a4 {[%clk 0:00:53.9]} 42.
Bc4 {[%clk 0:01:13.7]} 42... a3 {[%clk 0:00:52.1]} 43. Ba6 {[%clk 0:01:14.6]}
43... Bg3 {[%clk 0:00:44.1]} 44. Kd2 {[%clk 0:01:10.8]} 44... h5 {[%clk
0:00:44.9]} 45. Be2 {[%clk 0:01:09.8]} 45... Kd4 {[%clk 0:00:43.9]} 46. Bd3
{[%clk 0:01:07.2]} 46... h4 {[%clk 0:00:44.6]} 47. Bf1 {[%clk 0:01:08]} 47...
Ba4 {[%clk 0:00:37.3]} 48. Bc4 {[%clk 0:00:56.7]} 48... Be8 {[%clk 0:00:38.2]}
49. Be2 {[%clk 0:00:54.8]} 49... Bh5 {[%clk 0:00:32.1]} 50. Bd1 {[%clk
0:00:54.8]} 50... Be8 {[%clk 0:00:25]} 51. Be2 {[%clk 0:00:55.8]} 51... Bd7
{[%clk 0:00:26.5]} 52. Bf1 {[%clk 0:00:56.8]} 52... Bh2 {[%clk 0:00:25.8]} 53.
Nf2 {[%clk 0:00:56.8]} 53... Bg1 {[%clk 0:00:17.8]} 54. Nd3 {[%clk 0:00:56.4]}
54... Be3+ {[%clk 0:00:18.9]} 55. Kc2 {[%clk 0:00:57.3]} 55... Bb5 {[%clk
0:00:19.6]} 56. Be2 {[%clk 0:00:57.1]} 56... Bg1 {[%clk 0:00:20.1]} 57. Kd2
{[%clk 0:00:53.3]} 57... Be3+ {[%clk 0:00:21]} 58. Kc2 {[%clk 0:00:54.4]} 58...
Bf2 {[%clk 0:00:22.2]} 59. Kd2 {[%clk 0:00:52.6]} 59... Be3+ {[%clk 0:00:12.7]}
60. Kc2 {[%clk 0:00:53.3]} 60... Bg1 {[%clk 0:00:12.7]} 61. Kd2 {[%clk
0:00:54.1]} 61... Be3+ {[%clk 0:00:06.3]} 62. Kc2 {[%clk 0:00:54.9]} 62... Bg1
{[%clk 0:00:07.5]} 63. Kd2 {[%clk 0:00:56]} 63... Ba6 {[%clk 0:00:06.4]} 64.
Nxb4 {[%clk 0:00:40.4]} 64... Be3+ {[%clk 0:00:07.6]} 65. Kd1 {[%clk 0:00:41.8]}
65... Bxe2+ {[%clk 0:00:08.9]} 66. Kxe2 {[%clk 0:00:42.7]} 66... Kc3 {[%clk
0:00:10.6]} 67. Nc6 {[%clk 0:00:42.6]} 67... Kb2 {[%clk 0:00:11.3]} 68. Kd3
{[%clk 0:00:43.9]} 68... Kxa2 {[%clk 0:00:12.2]} 69. Kc2 {[%clk 0:00:45.2]}
69... Bb6 {[%clk 0:00:12]} 70. b4 {[%clk 0:00:46.1]} 70... Ka1 {[%clk
0:00:11.9]} 71. b5 {[%clk 0:00:46.6]} 71... Bc5 {[%clk 0:00:11.3]} 72. Ne7
{[%clk 0:00:47.3]} 72... Bb6 {[%clk 0:00:08.8]} 73. Nf5 {[%clk 0:00:47.2]} 73...
Bc5 {[%clk 0:00:09.5]} 74. Nxh4 {[%clk 0:00:45]} 74... Bb6 {[%clk 0:00:08]} 75.
Nf5 {[%clk 0:00:46.1]} 75... Bc5 {[%clk 0:00:09.5]} 76. Ne7 {[%clk 0:00:45.8]}
76... Bb6 {[%clk 0:00:10.5]} 77. Nc8 {[%clk 0:00:46.7]} 77... Bc5 {[%clk
0:00:11.8]} 78. Ne7 {[%clk 0:00:41]} 78... Bb6 {[%clk 0:00:12.9]} 79. Nf5 {[%clk
0:00:41.1]} 79... Bc5 {[%clk 0:00:14.1]} 80. Nh6 {[%clk 0:00:37.7]} 80... Bb6
{[%clk 0:00:14.5]} 81. Ng8 {[%clk 0:00:38.7]} 81... Bc5 {[%clk 0:00:14.4]} 82.
Ne7 {[%clk 0:00:36.7]} 82... Bb6 {[%clk 0:00:15.2]} 83. Nf5 {[%clk 0:00:38.3]}
1/2-1/2

[Event "*** MasterClass Titled Tuesday Blitz"]
[Site "Chess.com"]
[Date "2017.12.12"]
[Round "6"]
[White "Enzy63"]
[Black "BillCoe"]
[Result "1-0"]
[WhiteElo "2076"]
[BlackElo "1892"]
[TimeControl "180+2"]
[EndTime "14:27:42 PST"]
[Termination "Enzy63 won by checkmate"]

1. d4 {[%clk 0:03:01.9]} 1... d5 {[%clk 0:03:00.4]} 2. Nf3 {[%clk 0:03:02.8]}
2... e6 {[%clk 0:03:00.9]} 3. g3 {[%clk 0:03:04.1]} 3... Nf6 {[%clk 0:02:59.6]}
4. Bg2 {[%clk 0:03:05.4]} 4... g6 {[%clk 0:03:00.7]} 5. O-O {[%clk 0:02:55.7]}
5... Bg7 {[%clk 0:03:01.3]} 6. c4 {[%clk 0:02:56.4]} 6... c6 {[%clk 0:03:01.7]}
7. Qb3 {[%clk 0:02:36.5]} 7... O-O {[%clk 0:03:01.6]} 8. Nc3 {[%clk 0:02:37.9]}
8... Nbd7 {[%clk 0:03:00.5]} 9. Bf4 {[%clk 0:02:21.6]} 9... b6 {[%clk
0:02:51.7]} 10. Ne5 {[%clk 0:02:14]} 10... Bb7 {[%clk 0:02:50.4]} 11. e4 {[%clk
0:02:05.8]} 11... dxc4 {[%clk 0:02:32.9]} 12. Nxc4 {[%clk 0:02:02]} 12... Ba6
{[%clk 0:02:02.4]} 13. Rfd1 {[%clk 0:01:58.9]} 13... Bxc4 {[%clk 0:01:57.8]} 14.
Qxc4 {[%clk 0:01:59.2]} 14... Qc8 {[%clk 0:01:50.5]} 15. Rac1 {[%clk 0:01:54.8]}
15... Re8 {[%clk 0:01:33.7]} 16. Qa4 {[%clk 0:01:47.5]} 16... Qb7 {[%clk
0:01:27.3]} 17. b4 {[%clk 0:01:41.1]} 17... b5 {[%clk 0:01:21.6]} 18. Qa5 {[%clk
0:01:31.4]} 18... Nb6 {[%clk 0:01:22.7]} 19. Bf1 {[%clk 0:01:26]} 19... Rad8
{[%clk 0:01:10.6]} 20. Qa3 {[%clk 0:01:18.3]} 20... Nh5 {[%clk 0:01:01.8]} 21.
Be3 {[%clk 0:01:18.5]} 21... Bf8 {[%clk 0:00:56.9]} 22. Qb3 {[%clk 0:01:18.5]}
22... Nf6 {[%clk 0:00:54.3]} 23. f3 {[%clk 0:01:17.5]} 23... Rd7 {[%clk
0:00:52.4]} 24. Rb1 {[%clk 0:01:08.6]} 24... Red8 {[%clk 0:00:51.5]} 25. a4
{[%clk 0:01:02.7]} 25... a6 {[%clk 0:00:52]} 26. a5 {[%clk 0:01:02]} 26... Nc8
{[%clk 0:00:52.6]} 27. Bg2 {[%clk 0:00:56.1]} 27... Bg7 {[%clk 0:00:50.1]} 28.
h3 {[%clk 0:00:55.2]} 28... Ne7 {[%clk 0:00:49.5]} 29. Ne2 {[%clk 0:00:50.4]}
29... Ne8 {[%clk 0:00:47.9]} 30. Rbc1 {[%clk 0:00:48.2]} 30... Nd6 {[%clk
0:00:47.6]} 31. Rc2 {[%clk 0:00:42.8]} 31... Nc4 {[%clk 0:00:47.6]} 32. Rxc4
{[%clk 0:00:44]} 32... bxc4 {[%clk 0:00:48.3]} 33. Qxc4 {[%clk 0:00:45.9]} 33...
Rb8 {[%clk 0:00:40.1]} 34. Rb1 {[%clk 0:00:45.3]} 34... Qb5 {[%clk 0:00:40.5]}
35. Qc2 {[%clk 0:00:43.7]} 35... Nc8 {[%clk 0:00:30.6]} 36. Bf1 {[%clk
0:00:39.5]} 36... Qb7 {[%clk 0:00:24.7]} 37. Bf4 {[%clk 0:00:30.5]} 37... Nd6
{[%clk 0:00:23.7]} 38. Be3 {[%clk 0:00:28.1]} 38... Nb5 {[%clk 0:00:21.8]} 39.
Qc4 {[%clk 0:00:27.5]} 39... Rbd8 {[%clk 0:00:21.6]} 40. Rd1 {[%clk 0:00:27]}
40... Nd6 {[%clk 0:00:21.1]} 41. Qc2 {[%clk 0:00:24.6]} 41... Nb5 {[%clk
0:00:19]} 42. Qc4 {[%clk 0:00:20.7]} 42... Bf8 {[%clk 0:00:18.6]} 43. g4 {[%clk
0:00:19.2]} 43... Nd6 {[%clk 0:00:18.9]} 44. Qc3 {[%clk 0:00:19.8]} 44... Rb8
{[%clk 0:00:18.2]} 45. Rb1 {[%clk 0:00:19.5]} 45... Nb5 {[%clk 0:00:18.2]} 46.
Qc4 {[%clk 0:00:20.4]} 46... Rbd8 {[%clk 0:00:17.2]} 47. Rb3 {[%clk 0:00:19.1]}
47... Qa7 {[%clk 0:00:15]} 48. Bf2 {[%clk 0:00:19]} 48... Qb7 {[%clk 0:00:13.4]}
49. Bg2 {[%clk 0:00:19.5]} 49... Bg7 {[%clk 0:00:13.7]} 50. Rd3 {[%clk
0:00:19.6]} 50... Rc8 {[%clk 0:00:12.2]} 51. f4 {[%clk 0:00:20.4]} 51... Rcd8
{[%clk 0:00:12.9]} 52. e5 {[%clk 0:00:20.3]} 52... Rc8 {[%clk 0:00:11]} 53. Nc3
{[%clk 0:00:21.4]} 53... Na3 {[%clk 0:00:11.6]} 54. Qb3 {[%clk 0:00:21.3]} 54...
Nb5 {[%clk 0:00:11.7]} 55. Ne4 {[%clk 0:00:22.2]} 55... Rcd8 {[%clk 0:00:10.2]}
56. Nc5 {[%clk 0:00:22.9]} 56... Qc8 {[%clk 0:00:10.4]} 57. Nxd7 {[%clk
0:00:24.4]} 57... Qxd7 {[%clk 0:00:12.3]} 58. Qc4 {[%clk 0:00:25.1]} 58... Rc8
{[%clk 0:00:10.3]} 59. Be4 {[%clk 0:00:25.9]} 59... Bf8 {[%clk 0:00:11.2]} 60.
Be1 {[%clk 0:00:25.7]} 60... Rd8 {[%clk 0:00:11.6]} 61. Bf2 {[%clk 0:00:26.9]}
61... Rc8 {[%clk 0:00:12.1]} 62. Rd1 {[%clk 0:00:23.9]} 62... Be7 {[%clk
0:00:13.1]} 63. Bf3 {[%clk 0:00:25]} 63... Rc7 {[%clk 0:00:13.5]} 64. Rc1 {[%clk
0:00:25.5]} 64... Bd8 {[%clk 0:00:13.1]} 65. Bxc6 {[%clk 0:00:25]} 65... Qe7
{[%clk 0:00:11.6]} 66. Qb3 {[%clk 0:00:24.9]} 66... Qf8 {[%clk 0:00:10.7]} 67.
Rc5 {[%clk 0:00:24.5]} 67... Na7 {[%clk 0:00:10.8]} 68. Bf3 {[%clk 0:00:23.5]}
68... Rxc5 {[%clk 0:00:11.5]} 69. bxc5 {[%clk 0:00:23.6]} 69... Nc6 {[%clk
0:00:11.7]} 70. Bxc6 {[%clk 0:00:23.8]} 70... Bxa5 {[%clk 0:00:11.2]} 71. Qb7
{[%clk 0:00:21.2]} 71... Bd2 {[%clk 0:00:11.8]} 72. Bg3 {[%clk 0:00:20.7]} 72...
Qd8 {[%clk 0:00:11.1]} 73. Bd7 {[%clk 0:00:18.3]} 73... Qa5 {[%clk 0:00:11.6]}
74. Qc8+ {[%clk 0:00:12.6]} 74... Kg7 {[%clk 0:00:13.1]} 75. Bh4 {[%clk
0:00:12.2]} 75... Qa1+ {[%clk 0:00:14.1]} 76. Kg2 {[%clk 0:00:12.8]} 76... g5
{[%clk 0:00:10.9]} 77. Bxg5 {[%clk 0:00:13.7]} 77... Qxd4 {[%clk 0:00:11.6]} 78.
Bf6+ {[%clk 0:00:14.1]} 78... Kg6 {[%clk 0:00:12.3]} 79. Qg8+ {[%clk 0:00:14.9]}
79... Kh6 {[%clk 0:00:12.6]} 80. Qg7# {[%clk 0:00:15.7]} 1-0

[Event "*** MasterClass Titled Tuesday Blitz"]
[Site "Chess.com"]
[Date "2017.12.12"]
[Round "7"]
[White "ristingho"]
[Black "Kacparov"]
[Result "0-1"]
[WhiteElo "2348"]
[BlackElo "2594"]
[TimeControl "180+2"]
[EndTime "14:34:29 PST"]
[Termination "Kacparov won by resignation"]

1. d4 {[%clk 0:03:01.6]} 1... d6 {[%clk 0:03:00.3]} 2. e4 {[%clk 0:02:46.1]}
2... g6 {[%clk 0:03:01.6]} 3. Nc3 {[%clk 0:02:45.5]} 3... Bg7 {[%clk 0:02:56]}
4. f4 {[%clk 0:02:45.8]} 4... a6 {[%clk 0:02:54.8]} 5. Nf3 {[%clk 0:02:34]} 5...
b5 {[%clk 0:02:54.7]} 6. a4 {[%clk 0:02:28.2]} 6... b4 {[%clk 0:02:55.4]} 7. Nd5
{[%clk 0:02:29.1]} 7... Bb7 {[%clk 0:02:55.1]} 8. Nxb4 {[%clk 0:02:13.2]} 8...
Bxe4 {[%clk 0:02:55.7]} 9. Bd3 {[%clk 0:02:07.7]} 9... Bb7 {[%clk 0:02:56]} 10.
c3 {[%clk 0:02:08]} 10... Nf6 {[%clk 0:02:55.6]} 11. O-O {[%clk 0:02:08.6]}
11... O-O {[%clk 0:02:56.8]} 12. Qe2 {[%clk 0:02:08.4]} 12... c5 {[%clk
0:02:56.8]} 13. Nc2 {[%clk 0:02:03.5]} 13... Nbd7 {[%clk 0:02:55.3]} 14. Re1
{[%clk 0:01:55.4]} 14... e6 {[%clk 0:02:56.4]} 15. a5 {[%clk 0:01:45.9]} 15...
Qc7 {[%clk 0:02:57.1]} 16. b4 {[%clk 0:01:36.5]} 16... Rfc8 {[%clk 0:02:52.3]}
17. bxc5 {[%clk 0:01:32.5]} 17... dxc5 {[%clk 0:02:53]} 18. Ba3 {[%clk
0:01:32.1]} 18... c4 {[%clk 0:02:53.3]} 19. Bxg6 {[%clk 0:01:16.1]} 19... hxg6
{[%clk 0:02:53.9]} 20. Ne5 {[%clk 0:01:16.7]} 20... Nxe5 {[%clk 0:02:45.8]} 21.
fxe5 {[%clk 0:01:18.6]} 21... Nd5 {[%clk 0:02:45.7]} 22. Bd6 {[%clk 0:01:19]}
22... Qd7 {[%clk 0:02:46.5]} 23. Qf3 {[%clk 0:01:18.9]} 23... Nb4 {[%clk
0:02:43.5]} 24. Qf2 {[%clk 0:01:14.2]} 24... Nd3 {[%clk 0:02:43.8]} 0-1

[Event "*** MasterClass Titled Tuesday Blitz"]
[Site "Chess.com"]
[Date "2017.12.12"]
[Round "7"]
[White "ENEASZ"]
[Black "Blitzstream"]
[Result "1-0"]
[WhiteElo "2423"]
[BlackElo "2472"]
[TimeControl "180+2"]
[EndTime "14:35:00 PST"]
[Termination "ENEASZ won by resignation"]

1. e4 {[%clk 0:03:01.9]} 1... d5 {[%clk 0:03:00.2]} 2. exd5 {[%clk 0:03:03.6]}
2... Qxd5 {[%clk 0:03:02.1]} 3. Nc3 {[%clk 0:03:05]} 3... Qa5 {[%clk 0:03:03]}
4. d4 {[%clk 0:03:06.5]} 4... Nf6 {[%clk 0:03:04.6]} 5. Nf3 {[%clk 0:03:07.9]}
5... c6 {[%clk 0:03:05.8]} 6. Bc4 {[%clk 0:03:09.4]} 6... Bf5 {[%clk 0:03:07]}
7. Ne5 {[%clk 0:03:10]} 7... e6 {[%clk 0:03:06.1]} 8. g4 {[%clk 0:03:11.6]} 8...
Bg6 {[%clk 0:03:07.3]} 9. h4 {[%clk 0:03:12.7]} 9... Nbd7 {[%clk 0:03:08.4]} 10.
Nxd7 {[%clk 0:03:13.3]} 10... Nxd7 {[%clk 0:03:09.6]} 11. h5 {[%clk 0:03:13.5]}
11... Be4 {[%clk 0:03:10.5]} 12. Rh3 {[%clk 0:03:14.4]} 12... Bb4 {[%clk
0:02:59.2]} 13. Bd2 {[%clk 0:03:14.7]} 13... Bd5 {[%clk 0:02:50.5]} 14. Nxd5
{[%clk 0:03:06.5]} 14... cxd5 {[%clk 0:02:39.4]} 15. Bd3 {[%clk 0:03:03.9]}
15... Bxd2+ {[%clk 0:01:29.8]} 16. Qxd2 {[%clk 0:03:05.8]} 16... Qxd2+ {[%clk
0:01:28.3]} 17. Kxd2 {[%clk 0:03:07.7]} 17... Ke7 {[%clk 0:01:23.2]} 18. g5
{[%clk 0:03:06.1]} 18... f5 {[%clk 0:01:16.6]} 19. Re1 {[%clk 0:03:04.6]} 19...
Kd6 {[%clk 0:01:15.6]} 20. Rhe3 {[%clk 0:03:05.4]} 20... Rae8 {[%clk 0:01:16.2]}
21. Bxf5 {[%clk 0:03:06.2]} 21... Nf8 {[%clk 0:00:54.8]} 22. Bg4 {[%clk
0:02:59.1]} 22... h6 {[%clk 0:00:54.1]} 23. g6 {[%clk 0:02:59.4]} 23... Re7
{[%clk 0:00:54]} 24. f4 {[%clk 0:02:57.7]} 24... Re8 {[%clk 0:00:42.2]} 25. f5
{[%clk 0:02:55.4]} 25... Ke7 {[%clk 0:00:42.5]} 26. fxe6 {[%clk 0:02:54.2]}
26... Kf6 {[%clk 0:00:43.1]} 27. e7 {[%clk 0:02:54.7]} 1-0

[Event "*** MasterClass Titled Tuesday Blitz"]
[Site "Chess.com"]
[Date "2017.12.12"]
[Round "7"]
[White "juniortay"]
[Black "inegrepus"]
[Result "0-1"]
[WhiteElo "2299"]
[BlackElo "2049"]
[TimeControl "180+2"]
[EndTime "14:35:00 PST"]
[Termination "inegrepus won by resignation"]

1. e4 {[%clk 0:03:01.9]} 1... c5 {[%clk 0:03:00.3]} 2. Nc3 {[%clk 0:03:01.9]}
2... Nc6 {[%clk 0:03:00.3]} 3. Bb5 {[%clk 0:03:02.4]} 3... Nd4 {[%clk
0:02:58.1]} 4. Bc4 {[%clk 0:03:03.3]} 4... e6 {[%clk 0:02:55.3]} 5. Nge2 {[%clk
0:03:03.4]} 5... Nf6 {[%clk 0:02:49.7]} 6. O-O {[%clk 0:03:03.2]} 6... Be7
{[%clk 0:02:44.9]} 7. e5 {[%clk 0:02:59.6]} 7... Ng8 {[%clk 0:02:30.3]} 8. Nxd4
{[%clk 0:02:52.7]} 8... cxd4 {[%clk 0:02:31.3]} 9. Ne4 {[%clk 0:02:54.2]} 9...
f5 {[%clk 0:02:25.6]} 10. exf6 {[%clk 0:02:36.9]} 10... Nxf6 {[%clk 0:02:26.5]}
11. Nxf6+ {[%clk 0:02:33.6]} 11... Bxf6 {[%clk 0:02:28.4]} 12. Qh5+ {[%clk
0:02:26.5]} 12... g6 {[%clk 0:02:25.1]} 13. Qh6 {[%clk 0:02:27.6]} 13... Qe7
{[%clk 0:02:23.6]} 14. d3 {[%clk 0:02:25.7]} 14... Qg7 {[%clk 0:02:23.3]} 15.
Bd2 {[%clk 0:02:07.4]} 15... Qxh6 {[%clk 0:02:21]} 16. Bxh6 {[%clk 0:02:07.5]}
16... d5 {[%clk 0:02:12.4]} 17. f4 {[%clk 0:02:05.7]} 17... dxc4 {[%clk
0:02:12.3]} 18. dxc4 {[%clk 0:02:05.2]} 18... Bd7 {[%clk 0:02:10.3]} 19. Rad1
{[%clk 0:02:03.8]} 19... Rc8 {[%clk 0:02:07.4]} 20. b3 {[%clk 0:02:04.7]} 20...
Kf7 {[%clk 0:02:07]} 21. Rf2 {[%clk 0:02:01.7]} 21... Bc6 {[%clk 0:02:03.3]} 22.
Re2 {[%clk 0:02:02]} 22... Rhe8 {[%clk 0:02:01.4]} 23. Rde1 {[%clk 0:02:02.2]}
23... b5 {[%clk 0:01:57.1]} 24. cxb5 {[%clk 0:01:51.9]} 24... Bxb5 {[%clk
0:01:58.1]} 25. Rd2 {[%clk 0:01:51.2]} 25... d3 {[%clk 0:01:49.4]} 0-1